Cogmind - Beta 11 @@@ ROGUE MODE // 2022.03.23 @ 08:39:32 Player: Happytimes Result: Self-destructed Performance ------------- Evolutions (2) 1000 Regions Visited (5) 1000 Robots Destroyed (44) 220 Value Destroyed (1216) 1216 Prototype IDs (7) 140 Alien Tech Used (0) 0 Bonus (339) 339 TOTAL SCORE: 3915 Bonus ------- Follower Combat Kills 81 Aligned with FarCom 300 Friendly Fire -42 Cogmind --------- Core Integrity 404/550 Matter 296/300 Energy 93/160 System Corruption 1% Temperature Warning (358) Movement Core (900) Ox17 Location -8/Materials Parts ------- > --- POWER (2) -------- Light Nuclear Core > --- PROPULSION (2) --- (None) > --- UTILITY (3) ------ Improved Heat Sink Large Storage Unit Hacking Suite > --- WEAPON (4) ------- Heavy Particle Gun Firepult Enhanced Autogun > --- INVENTORY (15) --- Light Treads Particle Charger Hacking Suite System Shield Arc Projector Beam Cannon Particle Cannon Particle Cannon Rocket Launcher Datajack Remote Datajack Powered Hammer Axe Peak State ------------ > --- POWER ------------ Light Nuclear Core Light Nuclear Core > --- PROPULSION ------- Light Treads Light Treads > --- UTILITY ---------- Improved Heat Sink Large Storage Unit Hacking Suite > --- WEAPON ----------- Lightning Gun Lightning Gun Firepult > --- INVENTORY -------- Particle Charger Hacking Suite Lightning Gun Lightning Gun Arc Projector Beam Cannon Rocket Launcher Remote Datajack Powered Hammer [Rating: 45] Favorites ----------- Power Light Nuclear Core Engine Ion Engine Power Core Light Nuclear Core Propulsion Light Treads Treads Light Treads Hover Unit Hover Unit Utility Small Storage Unit Device Sensor Array Storage Small Storage Unit Hackware Hacking Suite Weapon Heavy Assault Rifle Energy Gun Lightning Gun Energy Cannon Particle Cannon Ballistic Gun Heavy Assault Rifle Launcher Rocket Launcher Build | -11 -10 -10 -10 -9 -8 ------- Run | Scr Mat Min Exi Min Mat Slots Evolved 4 | . . . . . 4 Power 1 | . . . . . 1 Propulsion . | . . . . . . Utility 1 | . . . . . 1 Weapon 2 | . . . . . 2 Parts Attached 47 | 6 5 8 6 1 21 Power 3 | 1 . 1 . . 1 Engine 1 | 1 . . . . . Core 2 | . . 1 . . 1 Reactor . | . . . . . . Propulsion 9 | 2 3 3 . . 1 Treads 5 | 2 . 2 . . 1 Leg . | . . . . . . Wheel . | . . . . . . Hover 4 | . 3 1 . . . Flight . | . . . . . . Utility 7 | 1 1 . 3 1 1 Device 4 | . 1 . 2 1 . Storage 2 | 1 . . 1 . . Processor . | . . . . . . Hackware 1 | . . . . . 1 Protection . | . . . . . . Artifact . | . . . . . . Weapon 28 | 2 1 4 3 . 18 Energy Gun 11 | 1 1 . . . 9 Energy Cannon 10 | . . . 3 . 7 Ballistic Gun 6 | 1 . 3 . . 2 Ballistic Cannon . | . . . . . . Launcher 1 | . . 1 . . . Special Weapon . | . . . . . . Impact Weapon . | . . . . . . Slashing Weapon . | . . . . . . Piercing Weapon . | . . . . . . Special Melee Weapon . | . . . . . . Unidentified Prototypes 5 | . . . 3 . 2 Parts Lost 6 | . . 2 . . 4 Power 1 | . . . . . 1 Propulsion 3 | . . 1 . . 2 Utility . | . . . . . . Weapon 2 | . . 1 . . 1 Highest Loss Streak 2 | . . 2 . . 2 To Critical Strikes . | . . . . . . Average Slot Usage (%) 93 | . 90 99 91 85 93 Engine 3 | . 14 4 . . . Core 11 | . . 9 14 14 17 Treads 22 | . 16 25 28 28 18 Hover 2 | . 11 2 . . . Device 11 | . 5 14 14 14 9 Storage 12 | . 14 14 14 14 9 Hackware 2 | . . . . . 8 Energy Gun 8 | . 13 1 . . 17 Energy Cannon 7 | . . . 7 14 13 Ballistic Gun 10 | . 14 24 12 . 1 Naked Turns . | . . . . . . Heaviest Build 61 | 13 14 18 48 48 61 Greatest Support 40 | 40 40 40 40 40 40 Greatest Overweight (x) 2 | . 2 1 1 1 1 Average Overweight (x) . | . . . . 1 . Largest Inventory Capacity 15 | 8 8 8 15 15 15 Average Capacity 11 | 6 8 8 9 15 15 Most Carried 13 | 5 8 8 8 9 13 Average Carried 7 | 1 3 7 8 8 9 Final Capacity 15 | 8 8 8 15 15 15 Final Carried 13 | . 7 8 8 9 13 Class Distribution -------------------- 41% | Mutant 34% | Scavenger-Mutant 19% | Scavenger-Skirmisher 4% | Skirmisher Dominant Class ---------------- Mutant | -10/Materials Scavenger-Mutant | -10/Mines Mutant | -10/Exiles Mutant | -9/Mines Scavenger-Skirmisher | -8/Materials Resources | -11 -10 -10 -10 -9 -8 ----------- Run | Scr Mat Min Exi Min Mat Matter Collected 914 | 218 132 212 . 40 312 Remotely . | . . . . . . Salvage Created 1746 | . 238 412 . . 1096 Parts 85 | . 12 24 . . 49 Haulers Intercepted 4 | . . . . . 4 Recyclers Shooed 1 | . . . . . 1 Parts Field Recycled . | . . . . . . Retrieved Matter . | . . . . . . Parts Self-Destructed . | . . . . . . Prevented . | . . . . . . Kills | -11 -10 -10 -10 -9 -8 ------- Run | Scr Mat Min Exi Min Mat Combat Hostiles Destroyed 26 | . 4 9 . . 13 Guns 14 | . 4 8 . . 2 Cannons 3 | . . . . . 3 AOE 7 | . . 1 . . 6 Classes Destroyed 10 | . 2 1 . . 7 Worker 1 | . . . . . 1 Builder 3 | . . . . . 3 Hauler 4 | . . . . . 4 Recycler 3 | . . . . . 3 Operator 5 | . 3 . . . 2 Watcher 2 | . . . . . 2 Swarmer 4 | . . . . . 4 Grunt 16 | . 4 7 . . 5 Sentry 5 | . . 2 . . 3 Heavy 1 | . . . . . 1 Best Kill Streak 7 | . 3 2 . . 7 Combat Bots Only 4 | . 3 2 . . 4 Max Kills in Single Turn 5 | . 1 1 . . 5 Gunslinging . | . . . . . . Exploded 3 | . . 1 . . 3 Melee . | . . . . . . Uniques/NPCs Destroyed . | . . . . . . Combat | -11 -10 -10 -10 -9 -8 -------- Run | Scr Mat Min Exi Min Mat Damage Taken 1429 | . 121 400 . 43 865 Core 238 | . 10 82 . . 146 Absorbed by Shields . | . . . . . . Core Remaining (%) 81 | 100 . . . 63 . Volleys Fired 90 | . 20 26 . . 44 Largest 4 | . 2 2 . . 4 Hottest 275 | . 60 60 . . 275 Shots Fired 182 | . 39 45 . . 98 Gun 149 | . 39 44 . . 66 Cannon 32 | . . . . . 32 Launcher 1 | . . 1 . . . Special . | . . . . . . Kinetic 75 | . 20 37 . . 18 Thermal 64 | . 19 7 . . 38 Explosive 1 | . . 1 . . . Electromagnetic 42 | . . . . . 42 Robot Hit Streak 11 | . 7 9 . . 11 Robot Miss Streak 4 | . 3 4 . . 3 Penetration Max . | . . . . . . Secondary Targets . | . . . . . . Shots Hit Robots 115 | . 27 28 . . 60 Core Hits 69 | . 12 18 . . 39 Critical Kills . | . . . . . . Critical Parts Destroyed 1 | . . . . . 1 Critical Strikes 1 | . . . . . 1 Destroy 1 | . . . . . 1 Melee Attacks . | . . . . . . Impact . | . . . . . . Slashing . | . . . . . . Piercing . | . . . . . . Sneak Attacks . | . . . . . . Combat Hostiles . | . . . . . . Follow-up Attacks . | . . . . . . Damage Inflicted 3066 | . 316 514 . . 2236 Guns 1390 | . 316 426 . . 648 Cannons 429 | . . . . . 429 Explosions 1247 | . . 88 . . 1159 Melee . | . . . . . . Ramming . | . . . . . . Kinetic 785 | . 186 360 . . 239 Thermal 1824 | . 130 66 . . 1628 Explosive 88 | . . 88 . . . Electromagnetic 369 | . . . . . 369 Impact . | . . . . . . Slashing . | . . . . . . Piercing . | . . . . . . Highest Corruption 1 | . . . . 1 1 Average Corruption 1 | . . . . 1 1 Corruption Purged . | . . . . . . Corruption Blocked . | . . . . . . Effects 9 | . . . . 3 6 Message Errors 4 | . . . . 2 2 Matter Fused 2 | . . . . 1 1 Energy Discharges 1 | . . . . . 1 Data Loss (minor) 1 | . . . . . 1 Data Loss (major) 1 | . . . . . 1 Overload Shots . | . . . . . . Overflow Damage 201 | . . . . . 201 Projectiles . | . . . . . . Explosions 201 | . . . . . 201 Melee . | . . . . . . Knockbacks . | . . . . . . Impact . | . . . . . . Kinetic . | . . . . . . Secondary . | . . . . . . Self-Inflicted Damage 43 | . . . . . 43 Shots 3 | . . . . . 3 Rammed . | . . . . . . Targets Rammed . | . . . . . . Kicked . | . . . . . . Crushed . | . . . . . . Highest Temperature 557 | . 120 63 . . 557 Average Temperature 114 | . 53 19 . . 148 Received Heat Transfer 561 | . 66 171 . . 324 Effects 9 | . . . . . 9 Shutdowns 3 | . . . . . 3 Interference 3 | . . . . . 3 Damage (major) 3 | . . . . . 3 Siege Activations . | . . . . . . Robots Corrupted . | . . . . . . Combat Hostiles . | . . . . . . Parts Fried 7 | . . . . . 7 Impact Corruptions . | . . . . . . Robots Melted 2 | . . . . . 2 Combat Hostiles 2 | . . . . . 2 Parts Melted 26 | . . 1 . . 25 Heat Transferred 5475 | . 300 150 . . 5025 Parts Sabotaged . | . . . . . . Parts Stolen . | . . . . . . Parts Stripped . | . . . . . . Power Chain Reactions 2 | . . . . . 2 Missiles Intercepted . | . . . . . . Alert | -11 -10 -10 -10 -9 -8 ------- Run | Scr Mat Min Exi Min Mat Peak Influence 417 | . 143 153 . . 417 Initial . | . . . . . . Average 102 | . 34 57 . . 203 Maximum Alert Level 2 | . . . . . 2 Low Security (%) 75 | 100 100 100 . 100 38 Level 1 20 | . . . . . 50 Level 2 4 | . . . . . 10 Level 3 . | . . . . . . Level 4 . | . . . . . . Level 5 . | . . . . . . High Security . | . . . . . . Max Security . | . . . . . . Squads Dispatched 10 | . 4 . . . 6 Investigation 1 | . 1 . . . . Extermination . | . . . . . . Reinforcement 6 | . 3 . . . 3 Assault . | . . . . . . Garrison 3 | . . . . . 3 Intercept . | . . . . . . Searches Triggered . | . . . . . . Construction Impeded 1 | . . . . . 1 Haulers Reinforced . | . . . . . . Active Scanning Responses . | . . . . . . Cargo Convoy Interrupts . | . . . . . . Stealth | -11 -10 -10 -10 -9 -8 --------- Run | Scr Mat Min Exi Min Mat Distress Signals 5 | . 2 . . . 3 Communications Jammed . | . . . . . . Distress Signals . | . . . . . . Times Spotted 42 | . 9 9 . . 24 Peak Tracking Total 5 | . 3 3 . . 5 Tactical Retreats 3 | . 1 . . . 2 Traps | -11 -10 -10 -10 -9 -8 ------- Run | Scr Mat Min Exi Min Mat Traps Triggered 2 | . 1 . . . 1 Indirectly . | . . . . . . Trap Hack Attempts . | . . . . . . Triggered . | . . . . . . Disarmed . | . . . . . . Reprogrammed . | . . . . . . Reused . | . . . . . . Traps Extracted . | . . . . . . Installed . | . . . . . . Triggered . | . . . . . . Machines | -11 -10 -10 -10 -9 -8 ---------- Run | Scr Mat Min Exi Min Mat Machines Disabled 7 | . . . . . 7 Max in Single Turn 5 | . . . . . 5 Machines Sabotaged . | . . . . . . Garrisons Compromised . | . . . . . . Overloaded Fab Kills . | . . . . . . Hacking | -11 -10 -10 -10 -9 -8 --------- Run | Scr Mat Min Exi Min Mat Machines Accessed 9 | . 1 1 . 1 6 Terminals 8 | . 1 1 . . 6 Fabricators . | . . . . . . Repair Stations . | . . . . . . Recycling Units . | . . . . . . Scanalyzers . | . . . . . . Garrison Access . | . . . . . . Total Hacks 16 | . 3 1 . 1 11 Successful 13 | . 2 1 . 1 9 Failed 3 | . 1 . . . 2 Catastrophic . | . . . . . . Database Lockouts . | . . . . . . Manual 1 | . . . 1 . . Terminals 15 | . 3 1 . . 11 Fabricators . | . . . . . . Repair Stations . | . . . . . . Recycling Units . | . . . . . . Scanalyzers . | . . . . . . Garrison Access . | . . . . . . Terminal Hacks 13 | . 2 1 . 1 9 Robot Analysis 1 | . 1 . . . . Prototype ID Bank 1 | . . . . . 1 Open Door 1 | . . . . 1 . Branch Access Points 1 | . . . . . 1 Alert Level 1 | . . . . . 1 Unreport Threat 1 | . . . . . 1 Locate Traps 1 | . . . . . 1 Dispatch Records 2 | . . 1 . . 1 Transport Status 1 | . . . . . 1 Investigation Status 1 | . . . . . 1 Hauler Manifests 1 | . 1 . . . . Zone Layout 1 | . . . . . 1 Fabricator Hacks . | . . . . . . Repair Station Hacks . | . . . . . . Recycling Unit Hacks . | . . . . . . Scanalyzer . | . . . . . . Garrison Access Hacks . | . . . . . . Unauthorized Hacks . | . . . . . . Terminals . | . . . . . . Fabricators . | . . . . . . Repair Stations . | . . . . . . Recycling Units . | . . . . . . Scanalyzers . | . . . . . . Garrison Access . | . . . . . . Data Cores Recovered 1 | . . . . . 1 Used 1 | . . . . . 1 Hacking Detections 5 | . 1 . . . 4 Full Trace Events 2 | . 1 . . . 1 Feedback Events . | . . . . . . Feedback Blocked . | . . . . . . Robot Schematics Acquired . | . . . . . . Robots Built . | . . . . . . Authchips . | . . . . . . Time . | . . . . . . Total Robot Build Rating . | . . . . . . Part Schematics Acquired . | . . . . . . Parts Built . | . . . . . . Authchips . | . . . . . . Time . | . . . . . . Total Part Build Rating . | . . . . . . Parts Repaired . | . . . . . . Time . | . . . . . . Parts Recycled . | . . . . . . Recycled Matter . | . . . . . . Retrieved Matter . | . . . . . . Retrieved Components . | . . . . . . Parts Scanalyzed . | . . . . . . Part Schematics Acquired . | . . . . . . Parts Damaged . | . . . . . . Bothacking | -11 -10 -10 -10 -9 -8 ------------ Run | Scr Mat Min Exi Min Mat Used RIF Installer . | . . . . . . Robots Hacked . | . . . . . . Non-combat . | . . . . . . Combat . | . . . . . . Robot Hacks Applied . | . . . . . . Relay Couplers Released . | . . . . . . Fabnet Peak Effective % . | . . . . . . Robots Rewired . | . . . . . . Allies Hacked . | . . . . . . Hacks Repelled . | . . . . . . Allies | -11 -10 -10 -10 -9 -8 -------- Run | Scr Mat Min Exi Min Mat Total Allies 4 | . . 4 . . . Largest Group 3 | . . 3 3 2 1 Highest-Rated Group 63 | . . 63 63 32 16 Highest-Rated Ally 31 | . . 31 31 16 16 Total Orders . | . . . . . . Ally Attacks 35 | . . 24 . . 11 Total Damage 305 | . . 208 . . 97 Kills 5 | . . 2 . . 3 Allies Corrupted 1 | . . . . . 1 Allies Melted . | . . . . . . Intel | -11 -10 -10 -10 -9 -8 ------- Run | Scr Mat Min Exi Min Mat Robot Analysis Total 1 | . 1 . . . . Derelict Logs Recovered 2 | . . 1 . 1 . Drone Launches . | . . . . . . Drone Recoveries . | . . . . . . Exploration | -11 -10 -10 -10 -9 -8 ------------- Run | Scr Mat Min Exi Min Mat Turns Passed 3397 | 55 436 869 455 419 1163 Spaces Moved 1539 | 44 241 476 261 156 361 Core 28 | 28 . . . . . Treads 1352 | 16 136 422 261 156 361 Legs . | . . . . . . Wheels . | . . . . . . Hover 159 | . 105 54 . . . Flight . | . . . . . . Fastest Speed 50 | 50 116 56 160 240 160 Average Speed 181 | 90 142 154 170 240 235 Slowest Speed 240 | 160 180 160 240 240 240 Overloaded Moves . | . . . . . . Propulsion Burnouts . | . . . . . . Robots Hopped . | . . . . . . Cave-ins Triggered . | . . . . . . Exploration Rate (%) 45 | 3 54 82 60 31 43 Regions Visited 5 Branch Regions 3 Pre-discovered Areas . | . . . . . . Known Exits Taken . | . . . . . . Unknown Exits Taken 5 | 1 1 1 1 1 . Scrap Searched . | . . . . . . Spaces Dug . | . . . . . . Terrain Destroyed 147 | . . 7 . . 140 Melee . | . . . . . . Projectile 2 | . . . . . 2 AOE 145 | . . 7 . . 138 Terrain Rammed . | . . . . . . Walls Destroyed . | . . . . . . Machines Disabled . | . . . . . . Actions | -11 -10 -10 -10 -9 -8 --------- Run | Scr Mat Min Exi Min Mat Total 2004 | 59 294 565 273 202 611 Wait 257 | 5 18 44 . 43 147 Move 1534 | 43 240 475 260 155 361 Hop . | . . . . . . Pick Up 44 | 5 10 7 . 2 20 Fast Attach 8 | 1 1 1 5 . . Attach 29 | 5 2 2 . 1 19 Detach 7 | . . . . . 7 Swap 10 | . 2 5 1 . 2 Drop 25 | . 1 5 7 1 11 Fire 90 | . 20 26 . . 44 Melee . | . . . . . . Ram . | . . . . . . Kick . | . . . . . . Crush . | . . . . . . Escape Stasis . | . . . . . . Rewire . | . . . . . . Trap . | . . . . . . Miscellaneous . | . . . . . . Route ------- -11/Scrapyard -10/Materials (discovered 2 exits: *Mat / *Min) -10/Mines (discovered 3 exits: *Mat x2 / *Exi) -10/Exiles -9/Mines -8/Materials History --------- Turn | Location | Event 11 | -11/Scrapyard | Discovered new exit (range 14) 56 | -11/Scrapyard | Entered Materials 304 | -10/Materials | Build established: Mutant 334 | -10/Materials | Discovered new exit (range 16) 460 | -10/Materials | Discovered new exit (range 9) 492 | -10/Materials | Entered Mines 508 | -10/Mines | Met a Derelict bent on vengeance 660 | -10/Mines | Received a Rocket Launcher from a helpful Derelict 754 | -10/Mines | Identified exit to Materials 890 | -10/Mines | Discovered exit to Materials (range 8) 1017 | -10/Mines | Found a hidden stash of uninstalled traps 1088 | -10/Mines | Build established: Scavenger-Mutant 1101 | -10/Mines | Assisted by bots powering up and referring to "LRC-V3" 1202 | -10/Mines | Escorted by a lone wolf Derelict 1345 | -10/Mines | Deemed a non-threat by the Exiles lab entrance 1346 | -10/Mines | Discovered new exit (range 5) 1361 | -10/Mines | Entered Exiles 1361 | -10/Exiles | Accompanied by 3 allies 1400 | -10/Exiles | Met 8R-AWN 1429 | -10/Exiles | Met EX-HEX 1472 | -10/Exiles | Met EX-BIN 1494 | -10/Exiles | Aligned with FarCom system 1496 | -10/Exiles | Given EX-Vault access code 1539 | -10/Exiles | Opened EX-Vault 1552 | -10/Exiles | Found Prototype Energy Cannon 1552 | -10/Exiles | Identified Gui. Plasma Cannon 1565 | -10/Exiles | Found Prototype Energy Cannon 1565 | -10/Exiles | Identified Firepult 1570 | -10/Exiles | Found Prototype Device 1570 | -10/Exiles | Identified Supersonic Drone Bay 1612 | -10/Exiles | Warned to stay clear of 0b10 Research branches 1666 | -10/Exiles | Met EX-DEC 1792 | -10/Exiles | Discovered new exit (range 10) 1816 | -10/Exiles | Left Exiles lab with Firepult 1816 | -10/Exiles | Entered Mines 1816 | -9/Mines | Accompanied by 2 allies 1974 | -9/Mines | Learned 2 Materials zone layouts 1975 | -9/Mines | Assembled infested the area 1977 | -9/Mines | Met a Derelict who couldn't figure out how to use a Trap Extractor 2185 | -9/Mines | Build established: Mutant 2221 | -9/Mines | Discovered new exit (range 5) 2235 | -9/Mines | Entered Materials 2235 | -8/Materials | Accompanied by 1 ally 2235 | -8/Materials | Evolved 4 slots: Power x1, Utility x1, Weapon x2 2591 | -8/Materials | Garrison activated, responded to threat 2840 | -8/Materials | Build established: Scavenger-Mutant 3144 | -8/Materials | Build established: Scavenger-Skirmisher 3398 | -8/Materials | Self-destructed Last Messages --------------- 03318_ Critical hit (Burn: +37). 03320_ Dropped Particle Cannon. 03320_ Acquired Enh. Autogun. 03321_ Critical hit (Burn: +37). 03324_ :H8N>:O,1ZWGYMO4EGOR|7QRE#T